[Event "Late-Titled-Tuesday-Blitz-January-30-2024"]
[Site "Chess.com"]
[Date "2024.01.30"]
[Round "7"]
[White "GAO"]
[Black "annacramling"]
[Result "1-0"]
[WhiteElo "2396"]
[BlackElo "2115"]
[TimeControl "180+1"]
[EndTime "15:17:25 PST"]
[Termination "GAO won by checkmate"]

1. a3 {[%clk 0:03:00.9]} 1... d6 {[%clk 0:02:44.5]} 2. b4 {[%clk 0:02:57.9]}
2... e6 {[%clk 0:02:44.1]} 3. Bb2 {[%clk 0:02:57.9]} 3... Ne7 {[%clk 0:02:44.1]}
4. e3 {[%clk 0:02:57.8]} 4... Ng6 {[%clk 0:02:44.7]} 5. Nf3 {[%clk 0:02:57]}
5... Nd7 {[%clk 0:02:43.1]} 6. h4 {[%clk 0:02:57.2]} 6... h5 {[%clk 0:02:43.1]}
7. d4 {[%clk 0:02:54.6]} 7... Nf6 {[%clk 0:02:40.3]} 8. Bd3 {[%clk 0:02:54.4]}
8... Ne7 {[%clk 0:02:20.6]} 9. Ng5 {[%clk 0:02:51.4]} 9... Nf5 {[%clk
0:02:17.1]} 10. Qf3 {[%clk 0:02:45.1]} 10... d5 {[%clk 0:01:39.5]} 11. Nd2
{[%clk 0:02:27.8]} 11... Be7 {[%clk 0:01:38.7]} 12. e4 {[%clk 0:02:25.8]} 12...
dxe4 {[%clk 0:01:38.5]} 13. Ndxe4 {[%clk 0:02:19.9]} 13... Nxd4 {[%clk
0:01:36.3]} 14. Bxd4 {[%clk 0:02:08.3]} 14... Qxd4 {[%clk 0:01:36]} 15. O-O
{[%clk 0:02:08.6]} 15... O-O {[%clk 0:01:28.2]} 16. Nxf6+ {[%clk 0:02:06.5]}
16... Qxf6 {[%clk 0:01:09]} 17. Qxh5 {[%clk 0:01:38]} 17... Qh6 {[%clk
0:01:08.9]} 18. Bh7+ {[%clk 0:01:27.9]} 18... Kh8 {[%clk 0:01:08.8]} 19. Nxf7+
{[%clk 0:01:26.9]} 19... Rxf7 {[%clk 0:01:06.8]} 20. Qxf7 {[%clk 0:01:26.7]}
20... Kxh7 {[%clk 0:00:38.9]} 21. Qxe7 {[%clk 0:01:25]} 21... e5 {[%clk
0:00:39.2]} 22. Rae1 {[%clk 0:00:58.5]} 22... Bf5 {[%clk 0:00:19.5]} 23. Rxe5
{[%clk 0:00:47.7]} 23... Bxc2 {[%clk 0:00:19.6]} 24. Qxc7 {[%clk 0:00:35.5]}
24... Bg6 {[%clk 0:00:12.4]} 25. Rfe1 {[%clk 0:00:23.7]} 25... Rf8 {[%clk
0:00:11.3]} 26. Qc4 {[%clk 0:00:17.3]} 26... Qd2 {[%clk 0:00:10.4]} 27. Qe2
{[%clk 0:00:17.4]} 27... Qf4 {[%clk 0:00:10.1]} 28. h5 {[%clk 0:00:16.4]} 28...
Bd3 {[%clk 0:00:07.9]} 29. Qe3 {[%clk 0:00:15.3]} 29... Qc4 {[%clk 0:00:03.3]}
30. Re7 {[%clk 0:00:13.2]} 30... Bc2 {[%clk 0:00:02]} 31. h6 {[%clk 0:00:12.7]}
31... Kg6 {[%clk 0:00:01.5]} 32. Rxg7+ {[%clk 0:00:12.2]} 32... Kh5 {[%clk
0:00:01.5]} 33. Qg5# {[%clk 0:00:11.7]} 1-0

[Event "Late-Titled-Tuesday-Blitz-January-30-2024"]
[Site "Chess.com"]
[Date "2024.01.30"]
[Round "7"]
[White "Rikikits"]
[Black "blitis"]
[Result "1-0"]
[WhiteElo "2840"]
[BlackElo "2625"]
[TimeControl "180+1"]
[EndTime "15:17:30 PST"]
[Termination "Rikikits won by resignation"]

1. d4 {[%clk 0:03:00.9]} 1... d6 {[%clk 0:03:00]} 2. c4 {[%clk 0:03:00.3]} 2...
f5 {[%clk 0:03:00.1]} 3. Nc3 {[%clk 0:02:59.8]} 3... Nf6 {[%clk 0:03:00.3]} 4.
Bg5 {[%clk 0:02:59.5]} 4... Nbd7 {[%clk 0:02:59.8]} 5. Qc2 {[%clk 0:02:59.7]}
5... e6 {[%clk 0:02:51.7]} 6. O-O-O {[%clk 0:02:57.8]} 6... Be7 {[%clk 0:02:48]}
7. h4 {[%clk 0:02:55.5]} 7... h6 {[%clk 0:02:37.9]} 8. Bd2 {[%clk 0:02:52.5]}
8... c6 {[%clk 0:02:32.5]} 9. e4 {[%clk 0:02:41.1]} 9... fxe4 {[%clk 0:02:07.2]}
10. Nxe4 {[%clk 0:02:39.7]} 10... d5 {[%clk 0:01:51.7]} 11. Ng3 {[%clk
0:02:16.8]} 11... O-O {[%clk 0:01:43.1]} 12. Nf3 {[%clk 0:02:12.2]} 12... b5
{[%clk 0:01:20.1]} 13. c5 {[%clk 0:02:09.8]} 13... e5 {[%clk 0:01:14]} 14. Nxe5
{[%clk 0:01:43.6]} 14... Nxe5 {[%clk 0:01:13.3]} 15. dxe5 {[%clk 0:01:44.5]}
15... Ng4 {[%clk 0:01:12.6]} 16. f4 {[%clk 0:01:45.1]} 16... Nf2 {[%clk
0:01:09]} 17. Bd3 {[%clk 0:01:44.9]} 17... Nxd1 {[%clk 0:01:00.8]} 18. Qxd1
{[%clk 0:01:44]} 18... Bxc5 {[%clk 0:00:56]} 19. f5 {[%clk 0:01:39.9]} 19... Bd4
{[%clk 0:00:49.8]} 20. e6 {[%clk 0:01:24]} 20... Qd6 {[%clk 0:00:41.6]} 21. Nh5
{[%clk 0:01:19.4]} 21... c5 {[%clk 0:00:18.3]} 22. Qg4 {[%clk 0:01:15.1]} 22...
Qe7 {[%clk 0:00:07]} 23. Bxh6 {[%clk 0:01:03.7]} 23... c4 {[%clk 0:00:06.4]} 24.
Bc2 {[%clk 0:01:01]} 24... Be5 {[%clk 0:00:06.7]} 25. Qg6 {[%clk 0:00:52.6]}
25... Bf6 {[%clk 0:00:05.4]} 26. Bg5 {[%clk 0:00:48.5]} 26... d4 {[%clk
0:00:05.9]} 27. Bxf6 {[%clk 0:00:44.5]} 27... Rxf6 {[%clk 0:00:05.5]} 28. Nxf6+
{[%clk 0:00:44.2]} 28... Qxf6 {[%clk 0:00:06]} 29. Qxf6 {[%clk 0:00:43.5]} 29...
gxf6 {[%clk 0:00:06.9]} 30. Be4 {[%clk 0:00:43.9]} 30... Rb8 {[%clk 0:00:06.8]}
31. g4 {[%clk 0:00:44]} 31... Bb7 {[%clk 0:00:03.1]} 32. Bxb7 {[%clk 0:00:43.2]}
32... Rxb7 {[%clk 0:00:04]} 33. g5 {[%clk 0:00:43.8]} 33... Kg7 {[%clk
0:00:04.7]} 34. g6 {[%clk 0:00:40.8]} 34... b4 {[%clk 0:00:04.7]} 35. h5 {[%clk
0:00:41.1]} 35... Kh6 {[%clk 0:00:04.6]} 36. Rh4 {[%clk 0:00:37]} 36... c3
{[%clk 0:00:02.6]} 37. Rxd4 {[%clk 0:00:37]} 37... Rb5 {[%clk 0:00:03.1]} 38.
bxc3 {[%clk 0:00:30.5]} 38... bxc3 {[%clk 0:00:04]} 39. Re4 {[%clk 0:00:29.9]}
39... Rxf5 {[%clk 0:00:02.9]} 40. e7 {[%clk 0:00:29.5]} 40... Rf1+ {[%clk
0:00:03.8]} 41. Kc2 {[%clk 0:00:29.6]} 41... Rf2+ {[%clk 0:00:04.4]} 42. Kxc3
{[%clk 0:00:30]} 1-0

[Event "Late-Titled-Tuesday-Blitz-January-30-2024"]
[Site "Chess.com"]
[Date "2024.01.30"]
[Round "7"]
[White "PapaieDudu"]
[Black "SnekkerAndersen"]
[Result "0-1"]
[WhiteElo "2408"]
[BlackElo "2642"]
[TimeControl "180+1"]
[EndTime "15:17:33 PST"]
[Termination "SnekkerAndersen won by resignation"]

1. e4 {[%clk 0:03:00.9]} 1... e6 {[%clk 0:02:59.7]} 2. d4 {[%clk 0:02:57.2]}
2... d5 {[%clk 0:03:00.2]} 3. e5 {[%clk 0:02:57.4]} 3... c5 {[%clk 0:02:59.9]}
4. c3 {[%clk 0:02:57.7]} 4... Nc6 {[%clk 0:03:00.5]} 5. Nf3 {[%clk 0:02:58]}
5... Bd7 {[%clk 0:03:00.5]} 6. Be2 {[%clk 0:02:58]} 6... f6 {[%clk 0:02:59]} 7.
exf6 {[%clk 0:02:57.3]} 7... Nxf6 {[%clk 0:02:58.7]} 8. O-O {[%clk 0:02:58]}
8... Bd6 {[%clk 0:02:58.5]} 9. Bg5 {[%clk 0:02:58.3]} 9... O-O {[%clk
0:02:58.4]} 10. Nbd2 {[%clk 0:02:59]} 10... Qe8 {[%clk 0:02:58.4]} 11. dxc5
{[%clk 0:02:57.5]} 11... Bxc5 {[%clk 0:02:57.8]} 12. Nb3 {[%clk 0:02:58.3]}
12... Bd6 {[%clk 0:02:57.2]} 13. Re1 {[%clk 0:02:58.6]} 13... Ne4 {[%clk
0:02:57]} 14. Be3 {[%clk 0:02:57.8]} 14... Rd8 {[%clk 0:02:54.2]} 15. c4 {[%clk
0:02:56.7]} 15... Qh5 {[%clk 0:02:42]} 16. cxd5 {[%clk 0:02:53.4]} 16... exd5
{[%clk 0:02:36.4]} 17. h3 {[%clk 0:02:44.9]} 17... Kh8 {[%clk 0:02:22.8]} 18.
Ng5 {[%clk 0:02:36.4]} 18... Qg6 {[%clk 0:02:22.5]} 19. Qxd5 {[%clk 0:02:14.1]}
19... Bf5 {[%clk 0:02:21.1]} 20. Nxe4 {[%clk 0:01:45.7]} 20... Bxe4 {[%clk
0:01:54.3]} 21. Qg5 {[%clk 0:01:45.2]} 21... Qf7 {[%clk 0:01:45.7]} 22. Nd2
{[%clk 0:01:44.6]} 22... Bd5 {[%clk 0:01:43.3]} 23. Bh5 {[%clk 0:01:42.3]} 23...
Qc7 {[%clk 0:01:36]} 24. Rac1 {[%clk 0:01:31.7]} 24... Bxa2 {[%clk 0:01:34.9]}
25. Nc4 {[%clk 0:01:20.9]} 25... Bf4 {[%clk 0:01:28.4]} 26. Bxf4 {[%clk
0:01:14.2]} 26... Qxf4 {[%clk 0:01:27.8]} 27. Qxf4 {[%clk 0:01:14.5]} 27... Rxf4
{[%clk 0:01:28.7]} 28. Ne3 {[%clk 0:01:06.3]} 28... g6 {[%clk 0:01:27.5]} 29.
Bf3 {[%clk 0:01:05.4]} 29... Ne5 {[%clk 0:01:17.7]} 30. Bxb7 {[%clk 0:01:01.5]}
30... Rb8 {[%clk 0:01:13.2]} 31. Rc7 {[%clk 0:00:58.3]} 31... Nd3 {[%clk
0:01:10.1]} 32. Rd1 {[%clk 0:00:55.4]} 32... Nxf2 {[%clk 0:00:58.1]} 33. Rdd7
{[%clk 0:00:53.4]} 33... Bg8 {[%clk 0:00:58.1]} 34. Nd5 {[%clk 0:00:16.6]} 34...
Rff8 {[%clk 0:00:58]} 35. Rg7 {[%clk 0:00:10.9]} 35... Ne4 {[%clk 0:00:48.6]}
36. Ne3 {[%clk 0:00:10.9]} 36... Nf6 {[%clk 0:00:42.6]} 37. h4 {[%clk
0:00:05.1]} 37... Nh5 {[%clk 0:00:42.4]} 38. Ng4 {[%clk 0:00:04.8]} 38... Nxg7
{[%clk 0:00:42.1]} 39. Nh6 {[%clk 0:00:05.2]} 39... Ne6 {[%clk 0:00:40]} 40. Re7
{[%clk 0:00:05.2]} 40... Rbe8 {[%clk 0:00:39.3]} 41. Rd7 {[%clk 0:00:04.8]}
41... Rd8 {[%clk 0:00:39.6]} 42. Re7 {[%clk 0:00:04.8]} 42... Rfe8 {[%clk
0:00:40]} 43. Rf7 {[%clk 0:00:04]} 43... Bxf7 {[%clk 0:00:39.8]} 44. Nxf7+
{[%clk 0:00:03.6]} 44... Kg7 {[%clk 0:00:40.4]} 45. Ne5 {[%clk 0:00:04.1]} 45...
Nc5 {[%clk 0:00:38.5]} 46. Nc6 {[%clk 0:00:04.6]} 46... Nxb7 {[%clk 0:00:38.6]}
0-1

[Event "Late-Titled-Tuesday-Blitz-January-30-2024"]
[Site "Chess.com"]
[Date "2024.01.30"]
[Round "7"]
[White "Zura_19"]
[Black "GMG"]
[Result "1-0"]
[WhiteElo "2568"]
[BlackElo "2797"]
[TimeControl "180+1"]
[EndTime "15:17:37 PST"]
[Termination "Zura_19 won on time"]

1. d4 {[%clk 0:02:59]} 1... f5 {[%clk 0:02:59.9]} 2. Bg5 {[%clk 0:02:53.4]} 2...
h6 {[%clk 0:02:58.4]} 3. Bh4 {[%clk 0:02:52.8]} 3... g5 {[%clk 0:02:58.2]} 4.
Bg3 {[%clk 0:02:52.8]} 4... Bg7 {[%clk 0:02:56.6]} 5. e3 {[%clk 0:02:44.8]} 5...
c5 {[%clk 0:02:56.7]} 6. c3 {[%clk 0:02:32.4]} 6... Qb6 {[%clk 0:02:56.2]} 7.
Na3 {[%clk 0:02:05.8]} 7... d5 {[%clk 0:02:22.6]} 8. Nf3 {[%clk 0:01:52.7]} 8...
Bd7 {[%clk 0:01:55.4]} 9. Ne5 {[%clk 0:01:21.7]} 9... Nf6 {[%clk 0:01:55]} 10.
Nxd7 {[%clk 0:01:15.8]} 10... Nbxd7 {[%clk 0:01:54.7]} 11. Qc2 {[%clk
0:01:12.1]} 11... Ne4 {[%clk 0:01:50.4]} 12. Be2 {[%clk 0:01:02.4]} 12... O-O
{[%clk 0:01:47.5]} 13. f3 {[%clk 0:00:52.6]} 13... Nxg3 {[%clk 0:01:46.5]} 14.
hxg3 {[%clk 0:00:53.5]} 14... e5 {[%clk 0:01:45.8]} 15. dxe5 {[%clk 0:00:49.9]}
15... Nxe5 {[%clk 0:01:45.4]} 16. Rd1 {[%clk 0:00:49.3]} 16... Rad8 {[%clk
0:01:43]} 17. f4 {[%clk 0:00:39.8]} 17... Ng4 {[%clk 0:01:00.7]} 18. Bxg4 {[%clk
0:00:35]} 18... fxg4 {[%clk 0:01:01.5]} 19. O-O {[%clk 0:00:30]} 19... c4 {[%clk
0:00:59.1]} 20. Qe2 {[%clk 0:00:26.7]} 20... Rde8 {[%clk 0:00:47.9]} 21. Rxd5
{[%clk 0:00:14.1]} 21... Rxe3 {[%clk 0:00:41.4]} 22. Qxc4 {[%clk 0:00:13.2]}
22... Rxg3+ {[%clk 0:00:29.8]} 23. Kh1 {[%clk 0:00:10.7]} 23... Kh8 {[%clk
0:00:25]} 24. fxg5 {[%clk 0:00:10.4]} 24... hxg5 {[%clk 0:00:12.6]} 25. Rxf8+
{[%clk 0:00:05.2]} 25... Bxf8 {[%clk 0:00:13.5]} 26. Qd4+ {[%clk 0:00:05.7]}
26... Bg7 {[%clk 0:00:07.2]} 27. Qxb6 {[%clk 0:00:05.5]} 27... axb6 {[%clk
0:00:06.8]} 28. Rxg5 {[%clk 0:00:06.1]} 28... Bh6 {[%clk 0:00:03.9]} 29. Rh5
{[%clk 0:00:06]} 29... Kg7 {[%clk 0:00:03.9]} 30. Nc4 {[%clk 0:00:06.4]} 30...
Bc1 {[%clk 0:00:02]} 31. Rb5 {[%clk 0:00:05.2]} 31... Rd3 {[%clk 0:00:01.8]} 32.
Kh2 {[%clk 0:00:04.2]} 1-0

[Event "Late-Titled-Tuesday-Blitz-January-30-2024"]
[Site "Chess.com"]
[Date "2024.01.30"]
[Round "7"]
[White "CarlosjPineror"]
[Black "Alex_Sahakyan2006"]
[Result "0-1"]
[WhiteElo "2682"]
[BlackElo "2869"]
[TimeControl "180+1"]
[EndTime "15:17:40 PST"]
[Termination "Alex_Sahakyan2006 won by resignation"]

1. e4 {[%clk 0:03:00.9]} 1... e5 {[%clk 0:02:58.8]} 2. Nf3 {[%clk 0:03:01]} 2...
Nc6 {[%clk 0:02:57.2]} 3. Bb5 {[%clk 0:03:00.7]} 3... a6 {[%clk 0:02:56.6]} 4.
Ba4 {[%clk 0:03:00.8]} 4... d6 {[%clk 0:02:56.9]} 5. d3 {[%clk 0:03:00.1]} 5...
g6 {[%clk 0:02:47]} 6. c3 {[%clk 0:02:56.7]} 6... Bg7 {[%clk 0:02:45.5]} 7. h4
{[%clk 0:02:46.3]} 7... Bg4 {[%clk 0:02:38.5]} 8. Bg5 {[%clk 0:02:44.1]} 8...
Ne7 {[%clk 0:02:27.1]} 9. Nbd2 {[%clk 0:02:36.3]} 9... h6 {[%clk 0:02:18.7]} 10.
Bxe7 {[%clk 0:02:34]} 10... Qxe7 {[%clk 0:02:15.4]} 11. Nf1 {[%clk 0:02:34.1]}
11... O-O {[%clk 0:02:07.3]} 12. Ne3 {[%clk 0:02:34]} 12... Be6 {[%clk
0:02:05.8]} 13. Bb3 {[%clk 0:02:33.2]} 13... Nd8 {[%clk 0:01:49.8]} 14. h5
{[%clk 0:02:32.7]} 14... c6 {[%clk 0:01:22.7]} 15. Nh4 {[%clk 0:02:11.3]} 15...
Qg5 {[%clk 0:01:11.6]} 16. hxg6 {[%clk 0:01:48.4]} 16... fxg6 {[%clk 0:01:08.8]}
17. Bxe6+ {[%clk 0:01:49]} 17... Nxe6 {[%clk 0:01:08.6]} 18. Qg4 {[%clk
0:01:49.3]} 18... Nf4 {[%clk 0:00:49.4]} 19. O-O-O {[%clk 0:01:42.4]} 19... Qxg4
{[%clk 0:00:38.5]} 20. Nxg4 {[%clk 0:01:40.7]} 20... h5 {[%clk 0:00:37.8]} 21.
Ne3 {[%clk 0:01:38.4]} 21... Bf6 {[%clk 0:00:20.7]} 22. Nf3 {[%clk 0:01:32.7]}
22... Be7 {[%clk 0:00:18.7]} 23. Rh2 {[%clk 0:00:55.3]} 23... Kg7 {[%clk
0:00:13.2]} 24. Rdh1 {[%clk 0:00:39.1]} 24... Nxd3+ {[%clk 0:00:10.7]} 25. Kc2
{[%clk 0:00:36.7]} 25... Nxf2 {[%clk 0:00:11.6]} 26. Re1 {[%clk 0:00:29.8]}
26... Nxe4 {[%clk 0:00:10.6]} 27. Nc4 {[%clk 0:00:20.4]} 27... Ng3 {[%clk
0:00:11.3]} 28. Nb6 {[%clk 0:00:19.8]} 28... Rad8 {[%clk 0:00:10.8]} 29. Rh3
{[%clk 0:00:18.1]} 29... Nf5 {[%clk 0:00:10.4]} 30. a4 {[%clk 0:00:17.7]} 30...
Bf6 {[%clk 0:00:08.7]} 31. a5 {[%clk 0:00:18.1]} 31... Rfe8 {[%clk 0:00:09]} 32.
b4 {[%clk 0:00:18.4]} 32... e4 {[%clk 0:00:08.6]} 33. Nd2 {[%clk 0:00:19.1]}
33... d5 {[%clk 0:00:08.5]} 34. Nb3 {[%clk 0:00:18.6]} 34... d4 {[%clk
0:00:07.3]} 35. c4 {[%clk 0:00:18.5]} 35... d3+ {[%clk 0:00:07.5]} 36. Kd1
{[%clk 0:00:19]} 36... e3 {[%clk 0:00:07.1]} 37. Nc5 {[%clk 0:00:18.1]} 37...
Bc3 {[%clk 0:00:07.1]} 38. Nbd7 {[%clk 0:00:14.2]} 38... e2+ {[%clk 0:00:06.5]}
0-1

[Event "Late-Titled-Tuesday-Blitz-January-30-2024"]
[Site "Chess.com"]
[Date "2024.01.30"]
[Round "7"]
[White "KamlaPasand"]
[Black "bazar-wokzal"]
[Result "1-0"]
[WhiteElo "2491"]
[BlackElo "2589"]
[TimeControl "180+1"]
[EndTime "15:17:47 PST"]
[Termination "KamlaPasand won by resignation"]

1. e4 {[%clk 0:03:00.9]} 1... Nc6 {[%clk 0:02:58.1]} 2. d4 {[%clk 0:02:55]} 2...
d5 {[%clk 0:02:58]} 3. e5 {[%clk 0:02:46.6]} 3... h5 {[%clk 0:02:57.7]} 4. Nf3
{[%clk 0:02:45.3]} 4... Bg4 {[%clk 0:02:57.2]} 5. Be2 {[%clk 0:02:43.9]} 5...
Qd7 {[%clk 0:02:56]} 6. O-O {[%clk 0:02:40.4]} 6... O-O-O {[%clk 0:02:55.5]} 7.
c3 {[%clk 0:02:36.5]} 7... f6 {[%clk 0:02:55.3]} 8. b4 {[%clk 0:02:32.4]} 8...
Bxf3 {[%clk 0:02:49.1]} 9. Bxf3 {[%clk 0:02:32.2]} 9... fxe5 {[%clk 0:02:49.4]}
10. b5 {[%clk 0:02:32.8]} 10... Na5 {[%clk 0:02:49.3]} 11. dxe5 {[%clk
0:02:31.7]} 11... e6 {[%clk 0:02:43.3]} 12. a4 {[%clk 0:02:29.9]} 12... Bc5
{[%clk 0:02:35.5]} 13. Ba3 {[%clk 0:02:28.5]} 13... Qe7 {[%clk 0:02:27.7]} 14.
Bxc5 {[%clk 0:02:24.5]} 14... Qxc5 {[%clk 0:02:28.6]} 15. Nd2 {[%clk 0:02:24.5]}
15... Ne7 {[%clk 0:02:25.8]} 16. Nb3 {[%clk 0:02:21.8]} 16... Qxc3 {[%clk
0:02:13.3]} 17. Nd4 {[%clk 0:02:17.6]} 17... Rh6 {[%clk 0:01:56.9]} 18. Rc1
{[%clk 0:02:14.8]} 18... Qa3 {[%clk 0:01:55.2]} 19. Bxh5 {[%clk 0:02:08.5]}
19... Nc4 {[%clk 0:01:48.2]} 20. Bg4 {[%clk 0:02:06.7]} 20... Nxe5 {[%clk
0:01:42.4]} 21. Nxe6 {[%clk 0:01:58.7]} 21... Nxg4 {[%clk 0:01:27.5]} 22. Qxg4
{[%clk 0:01:55]} 22... Rg6 {[%clk 0:01:19.3]} 23. Rxc7+ {[%clk 0:01:40.7]} 23...
Kb8 {[%clk 0:01:19]} 24. Qf4 {[%clk 0:01:39.7]} 24... Qd6 {[%clk 0:01:15.3]} 25.
Rxe7 {[%clk 0:01:35.2]} 25... Rxe6 {[%clk 0:01:10.1]} 26. Qxd6+ {[%clk
0:01:33.2]} 26... Rdxd6 {[%clk 0:01:04.4]} 27. Rxe6 {[%clk 0:01:25]} 27... Rxe6
{[%clk 0:01:04]} 28. Rd1 {[%clk 0:01:25.9]} 28... Kc7 {[%clk 0:01:04]} 29. f4
{[%clk 0:01:25.5]} 29... Kd6 {[%clk 0:01:04]} 30. Rd4 {[%clk 0:01:23.7]} 30...
Kc5 {[%clk 0:01:01.3]} 31. Rd2 {[%clk 0:01:23.7]} 31... Re4 {[%clk 0:01:00.9]}
32. f5 {[%clk 0:01:18.5]} 32... Rxa4 {[%clk 0:00:59.9]} 33. h3 {[%clk
0:01:18.7]} 33... d4 {[%clk 0:00:56.7]} 34. g4 {[%clk 0:01:17.4]} 34... Kxb5
{[%clk 0:00:56.8]} 35. g5 {[%clk 0:01:17.6]} 35... Kc4 {[%clk 0:00:56.3]} 36. f6
{[%clk 0:01:15.6]} 36... gxf6 {[%clk 0:00:55.8]} 37. g6 {[%clk 0:01:12.8]} 37...
Kc3 {[%clk 0:00:53.3]} 38. Rg2 {[%clk 0:01:10.7]} 38... d3 {[%clk 0:00:32.1]}
39. g7 {[%clk 0:01:10.5]} 39... d2 {[%clk 0:00:32.4]} 40. Rxd2 {[%clk
0:01:10.2]} 40... Kxd2 {[%clk 0:00:32.6]} 41. g8=Q {[%clk 0:01:10.2]} 41... a5
{[%clk 0:00:19.2]} 42. Qg2+ {[%clk 0:01:05.6]} 42... Kc3 {[%clk 0:00:18.6]} 43.
Qxb7 {[%clk 0:01:05.1]} 43... Ra1+ {[%clk 0:00:17.2]} 44. Kf2 {[%clk 0:01:04.1]}
44... a4 {[%clk 0:00:18.1]} 45. Qc6+ {[%clk 0:01:02.2]} 45... Kb3 {[%clk
0:00:18.1]} 46. Qxf6 {[%clk 0:01:01.4]} 46... Rc1 {[%clk 0:00:14.9]} 47. Qb6+
{[%clk 0:00:58.3]} 47... Ka2 {[%clk 0:00:12.8]} 48. h4 {[%clk 0:00:57.3]} 48...
a3 {[%clk 0:00:12]} 49. h5 {[%clk 0:00:57.4]} 49... Rh1 {[%clk 0:00:02.3]} 50.
Qe6+ {[%clk 0:00:55]} 50... Ka1 {[%clk 0:00:02.5]} 51. Qe5+ {[%clk 0:00:54]}
51... Ka2 {[%clk 0:00:02.3]} 52. Qd5+ {[%clk 0:00:54.2]} 52... Kb2 {[%clk
0:00:02.1]} 53. Qxh1 {[%clk 0:00:54.6]} 53... a2 {[%clk 0:00:02.7]} 54. h6
{[%clk 0:00:55]} 1-0

[Event "Late-Titled-Tuesday-Blitz-January-30-2024"]
[Site "Chess.com"]
[Date "2024.01.30"]
[Round "7"]
[White "santosalberto1987"]
[Black "Boninknights"]
[Result "1-0"]
[WhiteElo "2536"]
[BlackElo "2413"]
[TimeControl "180+1"]
[EndTime "15:17:48 PST"]
[Termination "santosalberto1987 won by resignation"]

1. e4 {[%clk 0:03:00.9]} 1... e5 {[%clk 0:02:57.8]} 2. Nf3 {[%clk 0:03:00]} 2...
Qe7 {[%clk 0:02:57.1]} 3. Bc4 {[%clk 0:02:56.5]} 3... g6 {[%clk 0:02:53]} 4. O-O
{[%clk 0:02:53.9]} 4... Bg7 {[%clk 0:02:51.7]} 5. c3 {[%clk 0:02:53.7]} 5... Nf6
{[%clk 0:02:42.5]} 6. Re1 {[%clk 0:02:52.9]} 6... O-O {[%clk 0:02:41.1]} 7. d4
{[%clk 0:02:50.2]} 7... d6 {[%clk 0:02:40.5]} 8. h3 {[%clk 0:02:47.3]} 8... h6
{[%clk 0:02:38.3]} 9. Nbd2 {[%clk 0:02:39.3]} 9... Nc6 {[%clk 0:02:28.6]} 10.
dxe5 {[%clk 0:02:18.3]} 10... dxe5 {[%clk 0:02:24.7]} 11. Nf1 {[%clk 0:02:18.1]}
11... Rd8 {[%clk 0:02:21.3]} 12. Qc2 {[%clk 0:02:17.5]} 12... Be6 {[%clk
0:02:17.1]} 13. Bxe6 {[%clk 0:02:13.8]} 13... Qxe6 {[%clk 0:02:16.4]} 14. Be3
{[%clk 0:02:11.7]} 14... Nh5 {[%clk 0:02:08.8]} 15. b4 {[%clk 0:02:07.9]} 15...
b6 {[%clk 0:02:04.1]} 16. Rad1 {[%clk 0:02:05.4]} 16... Nf4 {[%clk 0:02:01.3]}
17. a4 {[%clk 0:01:58.4]} 17... Qc4 {[%clk 0:01:47.1]} 18. N1d2 {[%clk 0:01:51]}
18... Qd3 {[%clk 0:01:36.3]} 19. Qxd3 {[%clk 0:01:43.6]} 19... Rxd3 {[%clk
0:01:34.1]} 20. Rc1 {[%clk 0:01:12.6]} 20... Rad8 {[%clk 0:01:28.4]} 21. Nf1
{[%clk 0:01:09]} 21... a5 {[%clk 0:01:20.7]} 22. b5 {[%clk 0:01:08.3]} 22... Nb8
{[%clk 0:01:20.1]} 23. Ng3 {[%clk 0:01:00.3]} 23... Ne6 {[%clk 0:01:18.5]} 24.
Kf1 {[%clk 0:00:40.8]} 24... Nd7 {[%clk 0:01:15.7]} 25. Red1 {[%clk 0:00:40.7]}
25... Ndc5 {[%clk 0:01:13.9]} 26. Rxd3 {[%clk 0:00:38.9]} 26... Rxd3 {[%clk
0:01:12.2]} 27. Ke2 {[%clk 0:00:38.9]} 27... Rd6 {[%clk 0:01:08.5]} 28. Ra1
{[%clk 0:00:35.7]} 28... f6 {[%clk 0:01:00.3]} 29. Nd2 {[%clk 0:00:34.2]} 29...
Nf4+ {[%clk 0:00:58.4]} 30. Bxf4 {[%clk 0:00:29.4]} 30... exf4 {[%clk
0:00:58.3]} 31. Ngf1 {[%clk 0:00:28.5]} 31... g5 {[%clk 0:00:57.3]} 32. f3
{[%clk 0:00:27.4]} 32... f5 {[%clk 0:00:55]} 33. exf5 {[%clk 0:00:26.4]} 33...
Rd5 {[%clk 0:00:52.3]} 34. Ne4 {[%clk 0:00:24.5]} 34... Rxf5 {[%clk 0:00:46.2]}
35. Nfd2 {[%clk 0:00:21.8]} 35... Rd5 {[%clk 0:00:40.7]} 36. Nxc5 {[%clk
0:00:16.6]} 36... Rxc5 {[%clk 0:00:40.3]} 37. Ne4 {[%clk 0:00:16.7]} 37... Rc4
{[%clk 0:00:40.1]} 38. Kd3 {[%clk 0:00:16.7]} 38... Rxe4 {[%clk 0:00:35.7]} 39.
fxe4 {[%clk 0:00:16.2]} 39... Kf7 {[%clk 0:00:34.5]} 40. Rd1 {[%clk 0:00:15.7]}
40... Be5 {[%clk 0:00:33.3]} 41. Kc4 {[%clk 0:00:15.6]} 41... Ke7 {[%clk
0:00:32.7]} 42. Rd5 {[%clk 0:00:15.1]} 42... Ke6 {[%clk 0:00:32.2]} 43. Rd8
{[%clk 0:00:15.1]} 43... h5 {[%clk 0:00:31.7]} 44. Re8+ {[%clk 0:00:14.8]} 44...
Kd6 {[%clk 0:00:30]} 45. Rg8 {[%clk 0:00:14.7]} 45... Bf6 {[%clk 0:00:29.1]} 46.
Rg6 {[%clk 0:00:12.9]} 46... Ke5 {[%clk 0:00:28.5]} 47. Rh6 {[%clk 0:00:12.9]}
47... g4 {[%clk 0:00:27.5]} 48. Rxh5+ {[%clk 0:00:11.6]} 48... Kxe4 {[%clk
0:00:27.7]} 49. hxg4 {[%clk 0:00:11.9]} 49... f3 {[%clk 0:00:27.5]} 50. gxf3+
{[%clk 0:00:11.8]} 50... Kxf3 {[%clk 0:00:27.7]} 51. Rf5+ {[%clk 0:00:12.3]} 1-0